fUST/lending_fUST_20251001
["ID","MTS","AMOUNT","RATE_DAILY","PERIOD"]
[388619713,1759263038320,-242.76901733,0.00021222,2]
[388619714,1759263038329,-7412.77942614,0.00021643,2]
[388619715,1759263038338,-896.54,0.00021906,3]
[388619716,1759263038347,-420.0,0.0002245,2]
[388619717,1759263038356,-420.0,0.0002245,2]
[388619718,1759263038365,-420.0,0.0002245,2]
[388619719,1759263038375,-354.0,0.0002245,2]
[388619720,1759263038384,-160.0,0.00022503,2]
[388619721,1759263038394,-160.0,0.00022503,2]
[388619722,1759263038403,-160.0,0.00022503,2]
[388619723,1759263038413,-160.0,0.00022503,2]
[388619724,1759263038422,-360.20659855,0.00022582,2]
[388619725,1759263038431,-298.84,0.00022676,3]
[388619726,1759263038440,-160.0,0.00023,2]
[388619727,1759263038449,-500.0,0.00023287,2]
[388619728,1759263038458,-948.8147729,0.00023478,2]
[388619729,1759263038468,-1442.9498341,0.00023959,2]
[388619730,1759263038477,-597.68,0.00024046,3]
[388619731,1759263038487,-999.94948356,0.00024222,2]
[388619732,1759263038499,-250.65940784,0.00024222,2]
[388619733,1759263038508,-587.0,0.0002443,2]
[388619734,1759263038517,-320.0,0.0002443,2]
[388619735,1759263038527,-250.0,0.00024496,2]
[388619736,1759263038536,-360.20659855,0.0002459,2]
[388619737,1759263038545,-313.0,0.00024818,2]
[388619738,1759263038554,-55494.04020397,0.000249,2]
[388619739,1759263038565,-4342.956325,0.000249,2]
[388619759,1759263040526,-357.46,0.000249,2]
[388619760,1759263040537,-7779.50484763,0.000249,2]
[388619761,1759263040548,-1700.0,0.000249,2]
[388619762,1759263040560,-3371.39293177,0.000249,2]
[388619763,1759263040571,-1587.3660309,0.000249,2]
[388619775,1759263043506,-1281.8,0.0002489,10]
[388619776,1759263043515,-8166.12,0.000249,2]
[388619777,1759263043527,-26482.26077594,0.000249,2]
[388619778,1759263043537,-877.02000001,0.000249,2]
[388619779,1759263043559,-1570.79474822,0.000249,2]
[388619906,1759263046510,-500.0,0.00024658,2]
[388619907,1759263046520,-5445.28454384,0.000249,2]
[388619908,1759263046531,-5491.01928003,0.000249,2]
[388619923,1759263092035,20000.0,0.0003473,60]
[388619931,1759264105023,4197.55475753,0.00018,2]
[388619932,1759264111448,11624.22374757,0.00015,2]
[388619933,1759264112986,586.77631602,0.000149,2]
[388619936,1759264174298,8355.13276795,0.00034721,60]
[388619937,1759264213130,155.0,0.00024,120]
[388619938,1759264214512,155.0,0.000278,120]
[388619955,1759264232673,-308.256805,0.00019654,2]
[388619956,1759264232684,-193.4689111,0.00019671,2]
[388619957,1759264232694,-1200.0,0.00019671,2]
[388619958,1759264232703,-300.0,0.00019671,2]
[388619959,1759264232715,-3077.2598676,0.00019672,2]
[388619960,1759264232727,-1131.5330807,0.00019672,2]
[388619961,1759264232738,-666.0,0.00020586,2]
[388619962,1759264232748,-160.0,0.00020667,2]
[388619963,1759264232758,-300.0,0.00020668,2]
[388619966,1759264232769,-215.0,0.00020668,2]
[388619968,1759264232779,-300.0,0.00020668,2]
[388619970,1759264232789,-300.0,0.00020668,2]
[388619971,1759264232800,-14603.55103942,0.00020671,2]
[388619972,1759264232810,-500.0,0.00020671,2]
[388619973,1759264232820,-229.21011434,0.00020671,2]
[388619974,1759264232832,-169.50400182,0.00020671,2]
[388619975,1759264232842,-500.0,0.00020671,2]
[388619976,1759264232852,-507.29580328,0.00020671,2]
[388619977,1759264232862,-500.0,0.00020671,2]
[388619978,1759264232872,-500.0,0.00020671,2]
[388619979,1759264232882,-475.9588975,0.00020671,2]
[388619980,1759264232892,-202.17173374,0.00020671,2]
[388619981,1759264232902,-500.0,0.00020671,2]
[388619982,1759264232911,-264.03111388,0.00020671,2]
[388619983,1759264232922,-500.0,0.00020671,2]
[388619984,1759264232932,-500.0,0.00020671,2]
[388619985,1759264232945,-500.0,0.00020671,2]
[388619986,1759264232955,-500.0,0.00020671,2]
[388619987,1759264232965,-6187.64298115,0.00020673,2]
[388620113,1759264238624,-14983.75201885,0.00020673,2]
[388620114,1759264238634,-258.0,0.00021426,2]
[388620115,1759264238643,-1211.0,0.0002153,2]
[388620116,1759264238656,-152.41937503,0.00021664,2]
[388620117,1759264238665,-307.74262791,0.00021664,2]
[388620118,1759264238674,-500.0,0.00021664,2]
[388620120,1759264238683,-500.0,0.00021664,2]
[388620121,1759264238692,-500.0,0.00021664,2]
[388620122,1759264238702,-500.0,0.00021664,2]
[388620123,1759264238711,-500.0,0.00021664,2]
[388620124,1759264238721,-500.0,0.00021664,2]
[388620125,1759264238733,-500.0,0.00021664,2]
[388620126,1759264238742,-500.0,0.00021664,2]
[388620127,1759264238751,-500.0,0.00021664,2]
[388620128,1759264238760,-500.0,0.00021664,2]
[388620129,1759264238770,-500.0,0.00021664,2]
[388620130,1759264238780,-500.0,0.00021664,2]
[388620131,1759264238789,-500.0,0.00021664,2]
[388620132,1759264238798,-604.13312587,0.00021664,2]
[388620133,1759264238808,-500.0,0.00021664,2]
[388620134,1759264238817,-500.0,0.00021664,2]
[388620135,1759264238826,-500.0,0.00021664,2]
[388620136,1759264238835,-5515.72511114,0.00021666,2]
[388620137,1759264238844,-190.74953097,0.00022483,2]
[388620138,1759264238853,-420.0,0.0002249,2]
[388620139,1759264238862,-160.0,0.00022507,2]
[388620140,1759264238871,-160.0,0.00022507,2]
[388620141,1759264238881,-160.0,0.00022507,2]
[388620142,1759264238890,-321.41825612,0.0002272,2]
[388620143,1759264238899,-500.0,0.00023287,2]
[388620144,1759264238908,-12427.6697854,0.000237,2]
[388620145,1759264238918,-265.7404736,0.000237,2]
[388620146,1759264238927,-721.474917,0.000237,2]
[388620147,1759264238936,-625.3044457,0.000237,2]
[388620148,1759264238945,-250.0,0.00023969,2]
[388620149,1759264238955,-250.0,0.00023969,2]
[388620150,1759264238964,-250.0,0.00023969,2]
[388620151,1759264238973,-250.0,0.00023969,2]
[388620152,1759264238982,-250.0,0.00023969,2]
[388620153,1759264238991,-284.43733032,0.00023969,2]
[388620154,1759264239001,-151.0,0.00023969,2]
[388620155,1759264239010,-1902.15261882,0.00024105,2]
[388620156,1759264239029,-1061.10744024,0.00024105,2]
[388620172,1759264245976,152.5,0.00034721,60]
[388620189,1759264246777,-225.12912412,0.00021326,2]
[388620190,1759264246787,-500.0,0.00021664,2]
[388620191,1759264246797,-500.0,0.00021664,2]
[388620192,1759264246805,-500.0,0.00021664,2]
[388620193,1759264246815,-500.0,0.00021664,2]
[388620194,1759264246824,-500.0,0.00021664,2]
[388620195,1759264246833,-320.28827373,0.00021664,2]
[388620196,1759264246845,-200.12763562,0.00021664,2]
[388620197,1759264246854,-500.0,0.00021664,2]
[388620198,1759264246864,-500.0,0.00021664,2]
[388620199,1759264246874,-225.12912409,0.00023225,2]
[388620200,1759264246884,-21.51713074,0.00024105,2]
[388620201,1759264246893,-342.82651536,0.00024152,2]
[388620202,1759264246904,-226.18731847,0.00024152,2]
[388620203,1759264246913,-587.0,0.00024472,2]
[388620204,1759264246923,-151.0,0.00024517,2]
[388620205,1759264246932,-160.0,0.00024588,2]
[388620206,1759264246941,-306.6864352,0.00024658,2]
[388620207,1759264246951,-151.0,0.00024658,2]
[388620208,1759264246961,-500.0,0.00024658,2]
[388620209,1759264246970,-151.0,0.00024658,2]
[388620210,1759264246980,-151.0,0.00024658,2]
[388620211,1759264246989,-151.0,0.00024658,2]
[388620212,1759264246998,-151.0,0.00024658,2]
[388620213,1759264247008,-155.70663066,0.00024658,2]
[388620214,1759264247017,-151.0,0.00024658,2]
[388620215,1759264247027,-500.0,0.00024658,2]
[388620216,1759264247036,-529.63227281,0.0002482,2]
[388620217,1759264247045,-151.0,0.00024932,2]
[388620218,1759264247056,-500.0,0.00024932,2]
[388620219,1759264247065,-151.0,0.00024932,2]
[388620220,1759264247074,-151.0,0.00024932,2]
[388620221,1759264247083,-166.86303812,0.00024932,2]
[388620222,1759264247093,-151.0,0.00024932,2]
[388620223,1759264247102,-500.0,0.00024932,2]
[388620224,1759264247112,-151.0,0.00025065,2]
[388620225,1759264247122,-260.0,0.00025135,2]
[388620226,1759264247131,-151.0,0.000252,12]
[388620227,1759264247140,-500.0,0.00025206,2]
[388620228,1759264247149,-151.0,0.00025206,2]
[388620229,1759264247159,-500.0,0.00025206,2]
[388620230,1759264247168,-500.0,0.0002548,2]
[388620231,1759264247177,-198.12293649,0.0002548,2]
[388620232,1759264247186,-430.53080367,0.0002548,2]
[388620233,1759264247196,-151.0,0.00025613,2]
[388620234,1759264247208,-360.0,0.00025683,2]
[388620235,1759264247218,-500.0,0.00025754,2]
[388620236,1759264247227,-252.02515466,0.00025969,2]
[388620237,1759264247236,-1068.17,0.0002598,10]
[388620238,1759264247246,-890.14,0.0002598,10]
[388620239,1759264247255,-72665.78024314,0.0002599,2]
[388620240,1759264247267,-756.96927996,0.0002599,2]
[388620241,1759264247317,-5000.0,0.0002599,2]
[388620263,1759264338752,152.0,0.00024,120]
[388620264,1759264340152,152.0,0.000275,120]
[388620288,1759265096421,417.15472785,0.00025,30]
[388620296,1759265398148,-666.0,0.00021326,2]
[388620297,1759265398171,-748.0035394,0.00021573,2]
[388620298,1759265398194,-447.602447,0.00021638,2]
[388620299,1759265398218,-1200.0,0.00021696,2]
[388620300,1759265398242,-747.4119274,0.00021797,2]
[388620301,1759265398266,-300.0,0.00022508,2]
[388620302,1759265398289,-293.36416222,0.00022509,2]
[388620303,1759265398313,-13482.668029,0.00022509,2]
[388620304,1759265398336,-160.0,0.0002251,2]
[388620305,1759265398361,-160.0,0.0002251,2]
[388620306,1759265398385,-160.0,0.0002251,2]
[388620307,1759265398409,-160.0,0.0002251,2]
[388620308,1759265398434,-427.47285446,0.00022573,2]
[388620309,1759265398541,-170.03299837,0.00022614,2]
[388620310,1759265398565,-344.30062215,0.00022625,2]
[388620311,1759265398588,-500.0,0.00022625,2]
[388620312,1759265398612,-500.0,0.00022625,2]
[388620313,1759265398635,-500.0,0.00022625,2]
[388620314,1759265398658,-500.0,0.00022625,2]
[388620315,1759265398681,-500.0,0.00022625,2]
[388620316,1759265398704,-200.78301932,0.00022625,2]
[388620317,1759265398726,-500.0,0.00022625,2]
[388620318,1759265398751,-500.0,0.00022625,2]
[388620319,1759265398773,-484.92035518,0.00022625,2]
[388620320,1759265398795,-433.7523839,0.00022625,2]
[388620321,1759265398820,-500.0,0.00022625,2]
[388620322,1759265398845,-500.0,0.00022625,2]
[388620323,1759265398869,-559.87147906,0.00022625,2]
[388620324,1759265398893,-4933.51743395,0.00022627,2]
[388620325,1759265398918,-500.0,0.00022673,2]
[388620326,1759265398949,-500.0,0.00022673,2]
[388620327,1759265398972,-500.0,0.00022673,2]
[388620328,1759265398995,-500.0,0.00022673,2]
[388620329,1759265399017,-500.0,0.00022673,2]
[388620330,1759265399040,-502.03063295,0.00022673,2]
[388620331,1759265399066,-593.7781974,0.00022673,2]
[388620332,1759265399089,-500.0,0.00022673,2]
[388620333,1759265399112,-500.0,0.00022673,2]
[388620334,1759265399136,-500.0,0.00022673,2]
[388620335,1759265399160,-225.47761846,0.00022869,2]
[388620336,1759265399182,-160.0,0.00023,2]
[388620337,1759265399205,-1000.0,0.00023221,2]
[388620338,1759265399228,-1000.0,0.00023221,2]
[388620339,1759265399251,-1000.0,0.00023221,2]
[388620340,1759265399274,-151.0,0.00023249,2]
[388620341,1759265399295,-690.59343277,0.00023288,2]
[388620342,1759265399318,-160.0,0.00023425,2]
[388620343,1759265399340,-500.0,0.00023768,2]
[388620344,1759265399362,-1500.0,0.00023768,2]
[388620345,1759265399384,-151.0,0.00023797,2]
[388620346,1759265399406,-500.0,0.00023797,2]
[388620347,1759265399427,-260.0,0.00023973,2]
[388620348,1759265399450,-427.4728544,0.00024303,2]
[388620349,1759265399472,-2000.0,0.00024316,2]
[388620350,1759265399494,-151.0,0.00024345,2]
[388620351,1759265399516,-500.0,0.00024407,2]
[388620352,1759265399539,-420.0,0.00024446,2]
[388620353,1759265399561,-310.72152779,0.00024501,2]
[388620354,1759265399584,-373.35796401,0.00024501,2]
[388620355,1759265399609,-500.0,0.00024501,2]
[388620356,1759265399633,-500.0,0.00024501,2]
[388620357,1759265399657,-500.0,0.00024501,2]
[388620358,1759265399681,-500.0,0.00024501,2]
[388620359,1759265399706,-532.84035638,0.00024501,2]
[388620360,1759265399733,-500.0,0.00024501,2]
[388620361,1759265399757,-500.0,0.00024501,2]
[388620362,1759265399781,-500.0,0.00024501,2]
[388620363,1759265399806,-500.0,0.00024501,2]
[388620364,1759265399830,-500.0,0.00024501,2]
[388620365,1759265399854,-500.0,0.00024501,2]
[388620366,1759265399949,-500.0,0.00024501,2]
[388620367,1759265399976,-500.0,0.00024501,2]
[388620368,1759265400000,-500.0,0.00024501,2]
[388620369,1759265400023,-500.0,0.00024501,2]
[388620370,1759265400047,-500.0,0.00024501,2]
[388620371,1759265400077,-500.0,0.00024501,2]
[388620372,1759265400103,-500.0,0.00024501,2]
[388620373,1759265400135,-500.0,0.00024501,2]
[388620374,1759265400160,-200.0,0.00024501,2]
[388620375,1759265400184,-450.2076028,0.00024502,2]
[388620376,1759265400208,-1799.02958079,0.00024502,2]
[388620377,1759265400232,-360.0,0.00024521,2]
[388620378,1759265400256,-500.0,0.00024573,2]
[388620379,1759265400278,-380.0,0.00024658,2]
[388620380,1759265400301,-2500.0,0.00024864,2]
[388620381,1759265400323,-370.42223155,0.00024875,14]
[388620382,1759265400346,-151.0,0.00024893,2]
[388620383,1759265400368,-460.0,0.00025069,2]
[388620384,1759265400391,-1000.0,0.00025121,2]
[388620385,1759265400414,-829.82667573,0.0002521,2]
[388620386,1759265400436,-500.0,0.0002525,2]
[388620387,1759265400459,-3000.0,0.00025412,2]
[388620388,1759265400485,-151.0,0.00025441,2]
[388620389,1759265400508,-560.0,0.00025617,2]
[388620390,1759265400531,-1500.0,0.00025668,2]
[388620391,1759265400554,-500.0,0.000257,2]
[388620392,1759265400578,-500.0,0.000257,2]
[388620393,1759265400601,-282.1940176,0.00025734,2]
[388620394,1759265400626,-847.9312987,0.00025734,2]
[388620395,1759265400649,-151.0,0.00025754,2]
[388620396,1759265400673,-151.0,0.00025754,2]
[388620397,1759265400698,-151.0,0.00025754,2]
[388620398,1759265400722,-500.0,0.00025798,2]
[388620399,1759265400747,-3500.0,0.0002596,2]
[388620400,1759265400770,-151.0,0.00025989,2]
[388620401,1759265400794,-482.11086438,0.00025989,2]
[388620402,1759265400817,-4328.60719531,0.00026,2]
[388620403,1759265400841,-151.0,0.00026028,2]
[388620404,1759265400865,-600.0,0.00026032,2]
[388620405,1759265400888,-427.4728544,0.00026034,2]
[388620406,1759265400913,-660.0,0.00026165,2]
[388620407,1759265400939,-2000.0,0.00026216,2]
[388620408,1759265400962,-1000.0,0.00026248,2]
[388620409,1759265400986,-1000.0,0.00026248,2]
[388620410,1759265401008,-151.0,0.00026302,2]
[388620411,1759265401031,-2193.19195845,0.00026508,2]
[388620412,1759265401064,-721.474917,0.00026524,2]
[388620413,1759265401086,-625.3044457,0.00026531,2]
[388620414,1759265401111,-151.0,0.00026537,2]
[388620415,1759265401136,-587.0,0.00026551,2]
[388620416,1759265401159,-265.7404736,0.00026562,2]
[388620417,1759265401182,-151.0,0.00026576,2]
[388620418,1759265401204,-760.0,0.00026713,2]
[388620419,1759265401228,-2500.0,0.00026764,2]
[388620420,1759265401249,-648.06373488,0.00026796,2]
[388620421,1759265401342,-1001.11923934,0.00026796,2]
[388620422,1759265401367,-1251.820785,0.00026849,2]
[388620423,1759265401390,-168.34882629,0.0002685,2]
[388620424,1759265401415,-1142.69,0.0002694,10]
[388620425,1759265401438,-1371.22,0.0002695,10]
[388620426,1759265401461,-1645.47,0.0002696,10]
[388620427,1759265401486,-185437.766338,0.0002697,2]
[388620428,1759265401508,-150.0,0.00026973,2]
[388620429,1759265401531,-33176.03168795,0.0002699,2]
[388620430,1759265401554,-364.70674818,0.00027,3]
[388620431,1759265401578,-293.36416222,0.00027,7]
[388620432,1759265401601,-293.36416222,0.00027,3]
[388620433,1759265401624,-293.36416222,0.00027,7]
[388620434,1759265401647,-293.36416222,0.00027,3]
[388620435,1759265401671,-151.0,0.00027085,2]
[388620436,1759265401695,-500.0,0.00027106,7]
[388620437,1759265401718,-860.0,0.00027261,2]
[388620438,1759265401741,-3000.0,0.00027312,2]
[388620439,1759265401765,-3210.80289981,0.00027336,2]
[388620440,1759265401788,-198.09975236,0.0002739,2]
[388620441,1759265401812,-150.0,0.0002739,2]
[388620442,1759265401837,-245.79781843,0.00027397,15]
[388620443,1759265401860,-160.0,0.00027397,2]
[388620444,1759265401882,-150.0,0.00027397,5]
[388620445,1759265401904,-182.07,0.000274,2]
[388620446,1759265401928,-600.0,0.00027402,7]
[388620447,1759265401951,-294.4,0.00027426,3]
[388620448,1759265401974,-883.22,0.00027426,3]
[388620449,1759265401999,-164994.4275693,0.00027426,2]
[388620475,1759265434764,-204.76438321,0.00021473,2]
[388620476,1759265434773,-363.33732106,0.00022795,2]
[388620477,1759265434820,-358.58064885,0.00022795,2]
[388620478,1759265434829,-151.0,0.00023249,2]
[388620479,1759265434838,-151.0,0.00023797,2]
[388620480,1759265434847,-151.0,0.00024345,2]
[388620481,1759265434856,-151.0,0.00024893,2]
[388620482,1759265434866,-151.0,0.00025441,2]
[388620483,1759265434875,-151.0,0.00025989,2]
[388620485,1759265434884,-151.0,0.00026537,2]
[388620486,1759265434893,-160.0,0.00026644,2]
[388620487,1759265434903,-151.0,0.00027085,2]
[388620488,1759265434911,-73.64701164,0.00027192,2]
[388620489,1759265434930,-186.35298836,0.00027192,2]
[388620490,1759265434939,-416.0,0.00027277,2]
[388620491,1759265434948,-952.24,0.00027416,10]
[388620492,1759265434957,-793.53,0.00027416,10]
[388620493,1759265434966,-182.08,0.00027416,2]
[388620494,1759265434975,-217.50506945,0.00027425,2]
[388620495,1759265434984,-261.35057481,0.00027425,2]
[388620496,1759265434993,-500.0,0.00027425,2]
[388620497,1759265435002,-500.0,0.00027425,2]
[388620498,1759265435011,-500.0,0.00027425,2]
[388620499,1759265435021,-500.0,0.00027425,2]
[388620500,1759265435030,-500.0,0.00027425,2]
[388620501,1759265435039,-500.0,0.00027425,2]
[388620502,1759265435048,-500.0,0.00027425,2]
[388620503,1759265435059,-500.0,0.00027425,2]
[388620504,1759265435069,-284.43016434,0.00027425,2]
[388620505,1759265435078,-164.99115058,0.00027425,2]
[388620506,1759265435087,-500.0,0.00027425,2]
[388620507,1759265435097,-500.0,0.00027425,2]
[388620508,1759265435106,-500.0,0.00027425,2]
[388620509,1759265435116,-500.0,0.00027425,2]
[388620510,1759265435125,-612.98824946,0.00027425,2]
[388620511,1759265435135,-13149.84700623,0.00027426,2]
[388620627,1759265437801,-1210.61150577,0.00027426,2]
[388620649,1759265442866,-622.37000679,0.00026603,2]
[388620650,1759265442876,-15064.89856927,0.00027426,2]
[388620651,1759265442974,-10287.96028363,0.00027426,2]
[388620654,1759265443057,-5390.75,0.00027426,2]
[388620685,1759265445936,-3210.80289981,0.00027373,2]
[388620686,1759265445946,-661.28,0.00027416,10]
[388620687,1759265445955,-10169.20075164,0.00027426,2]
[388620717,1759265796634,10000.0,0.00028767,120]
[388620727,1759266286532,399.0,0.00028767,120]
[388620728,1759266408510,461.0,0.00034772,120]
[388620729,1759266480923,201.0,0.00018082,2]
[388620730,1759266481190,201.0,0.00018082,2]
[388620765,1759266632239,-168.0,0.00019479,3]
[388620766,1759266632249,-2895.68013472,0.00022426,2]
[388620767,1759266632258,-160.0,0.00022627,2]
[388620768,1759266632268,-3772.94132571,0.00022627,2]
[388620769,1759266632277,-979.779168,0.00022744,2]
[388620770,1759266632286,-666.0,0.00023212,2]
[388620772,1759266632295,-747.4119274,0.00023741,2]
[388620774,1759266632303,-300.0,0.00023868,2]
[388620775,1759266632312,-1200.0,0.00023868,2]
[388620776,1759266632321,-2740.0035394,0.00023869,2]
[388620777,1759266632330,-250.0,0.00024292,2]
[388620778,1759266632338,-380.0,0.00024658,2]
[388620779,1759266632347,-500.0,0.00024834,2]
[388620780,1759266632356,-398.66609697,0.00024834,2]
[388620781,1759266632364,-500.0,0.00024834,2]
[388620782,1759266632373,-500.0,0.00024834,2]
[388620783,1759266632382,-159.41486006,0.00024834,2]
[388620784,1759266632390,-500.0,0.00024834,2]
[388620785,1759266632399,-500.0,0.00024834,2]
[388620786,1759266632408,-500.0,0.00024834,2]
[388620787,1759266632417,-500.0,0.00024834,2]
[388620788,1759266632434,-500.0,0.00024834,2]
[388620789,1759266632449,-500.0,0.00024834,2]
[388620790,1759266632461,-500.0,0.00024834,2]
[388620791,1759266632469,-500.0,0.00024873,2]
[388620792,1759266632478,-462.35152847,0.00024873,2]
[388620925,1759266639892,-891.36776746,0.00022477,2]
[388620926,1759266639948,-354.03224015,0.00022477,2]
[388620927,1759266639959,-1650.28012709,0.00022477,2]
[388620928,1759266639969,-400.0,0.00023465,2]
[388620929,1759266639978,-500.0,0.00024833,2]
[388620930,1759266639988,-500.0,0.00024833,2]
[388620931,1759266639998,-500.0,0.00024833,2]
[388620932,1759266640007,-517.71276223,0.00024833,2]
[388620933,1759266640016,-344.30062215,0.00024833,2]
[388620934,1759266640025,-500.0,0.00024833,2]
[388620935,1759266640033,-250.26629702,0.00024833,2]
[388620998,1759266643313,-249.73370298,0.00024833,2]
[388620999,1759266643323,-500.0,0.00024833,2]
[388621000,1759266643334,-500.0,0.00024833,2]
[388621001,1759266643343,-500.0,0.00024833,2]
[388621002,1759266643352,-367.69183125,0.00024833,2]
[388621114,1759266646038,-2895.6801347,0.00022527,2]
[388621116,1759266646047,-132.30816875,0.00024833,2]
[388621118,1759266646056,-200.78301932,0.00024833,2]
[388621120,1759266646064,-500.0,0.00024833,2]
[388621122,1759266646073,-500.0,0.00024833,2]
[388621124,1759266646082,-500.0,0.00024833,2]
[388621126,1759266646092,-500.0,0.00024833,2]
[388621128,1759266646102,-500.0,0.00024833,2]
[388621130,1759266646110,-500.0,0.00024833,2]
[388621132,1759266646119,-492.6267068,0.00024833,2]
[388621133,1759266646129,-500.0,0.00024833,2]
[388621134,1759266646137,-324.61112031,0.00024833,2]
[388621135,1759266646146,-500.0,0.00024833,2]
[388621136,1759266646155,-500.0,0.00024833,2]
[388621137,1759266646164,-500.0,0.00024833,2]
[388621138,1759266646173,-339.52541403,0.00024833,2]
[388621139,1759266646182,-500.0,0.00024833,2]
[388621140,1759266646192,-500.0,0.00024833,2]
[388621141,1759266646202,-500.0,0.00024833,2]
[388621142,1759266646211,-500.0,0.00024833,2]
[388621143,1759266646219,-4.93033849,0.00024835,2]
[388621144,1759266646230,-395.06966151,0.00024835,2]
[388621145,1759266646239,-37.64847153,0.00024873,2]
[388621146,1759266646248,-500.0,0.00024873,2]
[388621147,1759266646257,-502.03063295,0.00024873,2]
[388621148,1759266646266,-5.25123401,0.00024873,2]
[388621149,1759266646277,-494.74876599,0.00024873,2]
[388621150,1759266646286,-500.0,0.00024873,2]
[388621151,1759266646295,-1000.0,0.00025421,2]
[388621152,1759266646304,-621.74410255,0.00025852,2]
[388621153,1759266646313,-420.0,0.00025887,2]
[388621154,1759266646322,-170.03299837,0.00025937,2]
[388621155,1759266646330,-151.0,0.00025937,2]
[388621156,1759266646339,-260.75936446,0.00025937,2]
[388621157,1759266646348,-500.0,0.00025968,2]
[388621158,1759266646357,-593.7781974,0.00025973,2]
[388621159,1759266646366,-500.0,0.00025973,2]
[388621160,1759266646377,-500.0,0.00025973,2]
[388621161,1759266646386,-500.0,0.00025973,2]
[388621162,1759266646395,-500.0,0.00025973,2]
[388621163,1759266646404,-400.0,0.00026205,2]
[388621164,1759266646413,-500.0,0.00026416,2]
[388621165,1759266646421,-390.71463168,0.00026416,2]
[388621166,1759266646430,-245.47000696,0.00026416,2]
[388621167,1759266646439,-500.0,0.00026416,2]
[388621168,1759266646448,-500.0,0.00026416,2]
[388621169,1759266646457,-441.85328174,0.00026416,2]
[388621212,1759267832325,-284.92,0.000215,2]
[388621213,1759267832334,-300.0,0.00021642,2]
[388621214,1759267832343,-300.0,0.00021642,2]
[388621215,1759267832352,-300.0,0.00021642,2]
[388621216,1759267832361,-300.0,0.00021642,2]
[388621217,1759267832370,-300.0,0.00021642,2]
[388621218,1759267832379,-1100.0,0.00021642,2]
[388621219,1759267832389,-27322.53627033,0.00021643,2]
[388621220,1759267832398,-501.07296496,0.00021673,2]
[388621221,1759267832407,-341.95662106,0.00021673,2]
[388621222,1759267832415,-500.0,0.00021673,2]
[388621223,1759267832424,-500.0,0.00021673,2]
[388621224,1759267832433,-500.0,0.00021673,2]
[388621225,1759267832442,-501.40212099,0.00021673,2]
[388621226,1759267832451,-254.12926979,0.00021673,2]
[388621362,1759267838146,-500.0,0.00021642,2]
[388621364,1759267838156,-500.0,0.00021642,2]
[388621366,1759267838165,-179.3802619,0.00021642,2]
[388621368,1759267838174,-500.0,0.00021642,2]
[388621370,1759267838183,-500.0,0.00021642,2]
[388621372,1759267838192,-500.0,0.00021642,2]
[388621379,1759267838202,-500.0,0.00021642,2]
[388621380,1759267838295,-500.0,0.00021642,2]
[388621381,1759267838304,-404.5474909,0.00021642,2]
[388621382,1759267838316,-95.4525091,0.00021642,2]
[388621383,1759267838326,-500.0,0.00021642,2]
[388621384,1759267838335,-500.0,0.00021642,2]
[388621385,1759267838344,-500.0,0.00021642,2]
[388621386,1759267838353,-500.0,0.00021642,2]
[388621387,1759267838363,-500.0,0.00021642,2]
[388621388,1759267838372,-500.0,0.00021642,2]
[388621389,1759267838382,-500.0,0.00021642,2]